[Event "Live Chess"]
[Site "Chess.com"]
[Date "2023.05.21"]
[Round "-"]
[White "friarnator"]
[Black "WelshTiger"]
[Result "1-0"]
[WhiteElo "2020"]
[BlackElo "2291"]
[TimeControl "300"]
[EndTime "5:19:45 PDT"]
[Termination "friarnator won by resignation"]

1. e4 {[%clk 0:04:57.3]} 1... c6 {[%clk 0:04:58.8]} 2. d4 {[%clk 0:04:50.8]}
2... d5 {[%clk 0:04:57.9]} 3. Nc3 {[%clk 0:04:50.6]} 3... dxe4 {[%clk
0:04:56.9]} 4. Nxe4 {[%clk 0:04:50.5]} 4... Nf6 {[%clk 0:04:56.4]} 5. Nxf6+
{[%clk 0:04:49.5]} 5... exf6 {[%clk 0:04:56.3]} 6. c3 {[%clk 0:04:48.7]} 6...
Bd6 {[%clk 0:04:54.4]} 7. Bd3 {[%clk 0:04:48.3]} 7... O-O {[%clk 0:04:53.7]} 8.
Qc2 {[%clk 0:04:47.1]} 8... h5 {[%clk 0:04:52.1]} 9. Ne2 {[%clk 0:04:42]} 9...
Re8 {[%clk 0:04:51.5]} 10. O-O {[%clk 0:04:39.4]} 10... h4 {[%clk 0:04:50.1]}
11. h3 {[%clk 0:04:38]} 11... Nd7 {[%clk 0:04:49.2]} 12. Bd2 {[%clk 0:04:19.9]}
12... Nf8 {[%clk 0:04:48.3]} 13. Rae1 {[%clk 0:04:14.1]} 13... Bc7 {[%clk
0:04:47]} 14. c4 {[%clk 0:04:03.5]} 14... Qd6 {[%clk 0:04:45.7]} 15. f4 {[%clk
0:03:46.7]} 15... Be6 {[%clk 0:04:36.3]} 16. c5 {[%clk 0:03:38.8]} 16... Qd7
{[%clk 0:04:31.6]} 17. f5 {[%clk 0:03:37]} 17... Bd5 {[%clk 0:04:31.1]} 18. Nf4
{[%clk 0:03:33.7]} 18... Bxf4 {[%clk 0:04:25.7]} 19. Bxf4 {[%clk 0:03:30.3]}
19... Rxe1 {[%clk 0:04:23.1]} 20. Rxe1 {[%clk 0:03:30.2]} 20... Re8 {[%clk
0:04:22]} 21. Rxe8 {[%clk 0:03:18.1]} 21... Qxe8 {[%clk 0:04:21.9]} 22. Kf2
{[%clk 0:03:16.6]} 22... Nh7 {[%clk 0:04:04.6]} 23. b3 {[%clk 0:03:13.9]} 23...
Ng5 {[%clk 0:04:01.5]} 24. Bxg5 {[%clk 0:02:34.2]} 24... fxg5 {[%clk 0:04:01.4]}
25. Qe2 {[%clk 0:02:29.6]} 25... Qxe2+ {[%clk 0:03:56.5]} 26. Bxe2 {[%clk
0:02:28.3]} 26... Kf8 {[%clk 0:03:52.3]} 27. Bf3 {[%clk 0:02:24.9]} 27... Bxf3
{[%clk 0:03:38.5]} 28. Kxf3 {[%clk 0:02:24.8]} 28... Ke7 {[%clk 0:03:37.9]} 29.
Ke4 {[%clk 0:02:17.9]} 29... Kf6 {[%clk 0:03:35.9]} 30. b4 {[%clk 0:02:16]}
30... g6 {[%clk 0:03:33.8]} 31. fxg6 {[%clk 0:02:14.3]} 31... Kxg6 {[%clk
0:03:32.8]} 32. d5 {[%clk 0:02:09.1]} 32... f5+ {[%clk 0:03:31.7]} 33. Ke5
{[%clk 0:02:08.1]} 33... cxd5 {[%clk 0:02:54.2]} 34. Kxd5 {[%clk 0:02:08]} 34...
f4 {[%clk 0:02:52.9]} 35. Ke5 {[%clk 0:02:02.2]} 35... g4 {[%clk 0:02:38.3]} 36.
Kxf4 {[%clk 0:01:59.6]} 36... gxh3 {[%clk 0:02:35.6]} 37. gxh3 {[%clk
0:01:59.5]} 37... Kf6 {[%clk 0:02:35]} 38. Ke4 {[%clk 0:01:55.3]} 38... Ke6
{[%clk 0:02:33.1]} 39. a4 {[%clk 0:01:52.3]} 39... a6 {[%clk 0:02:31.2]} 40. b5
{[%clk 0:01:49.5]} 40... a5 {[%clk 0:02:29.7]} 41. Kd4 {[%clk 0:01:46.4]} 41...
Kd7 {[%clk 0:02:27.3]} 42. Ke5 {[%clk 0:01:44]} 42... Kc7 {[%clk 0:02:25.6]} 43.
Kd5 {[%clk 0:01:43.2]} 43... Kd7 {[%clk 0:02:24.9]} 44. c6+ {[%clk 0:01:42.5]}
44... Kc7 {[%clk 0:02:20.9]} 45. Kc5 {[%clk 0:01:38.6]} 45... b6+ {[%clk
0:02:20.1]} 46. Kd5 {[%clk 0:01:37.2]} 46... Kd8 {[%clk 0:02:19.6]} 47. Kd6
{[%clk 0:01:17.8]} 47... Kc8 {[%clk 0:02:19.5]} 48. c7 {[%clk 0:01:16.5]} 1-0

[Event "Live Chess"]
[Site "Chess.com"]
[Date "2023.05.21"]
[Round "-"]
[White "LiamClery2020"]
[Black "viktorskliarov"]
[Result "0-1"]
[WhiteElo "1987"]
[BlackElo "2649"]
[TimeControl "300"]
[EndTime "5:19:49 PDT"]
[Termination "viktorskliarov won by resignation"]

1. e4 {[%clk 0:04:58.4]} 1... c5 {[%clk 0:04:56.8]} 2. Nf3 {[%clk 0:04:57.2]}
2... Nc6 {[%clk 0:04:56.5]} 3. Bb5 {[%clk 0:04:56.6]} 3... e6 {[%clk 0:04:55.5]}
4. Bxc6 {[%clk 0:04:54.2]} 4... bxc6 {[%clk 0:04:55.4]} 5. O-O {[%clk
0:04:53.9]} 5... Ne7 {[%clk 0:04:54.9]} 6. Re1 {[%clk 0:04:53.3]} 6... Ng6
{[%clk 0:04:54.5]} 7. c3 {[%clk 0:04:50.1]} 7... Qc7 {[%clk 0:04:42.6]} 8. d4
{[%clk 0:04:48]} 8... cxd4 {[%clk 0:04:41.7]} 9. cxd4 {[%clk 0:04:47.9]} 9... d5
{[%clk 0:04:40.8]} 10. exd5 {[%clk 0:04:45.7]} 10... cxd5 {[%clk 0:04:36.9]} 11.
Nc3 {[%clk 0:04:45.6]} 11... Be7 {[%clk 0:04:33.5]} 12. Bg5 {[%clk 0:04:43.8]}
12... O-O {[%clk 0:04:26]} 13. Bxe7 {[%clk 0:04:42.4]} 13... Nxe7 {[%clk
0:04:25.2]} 14. Rc1 {[%clk 0:04:41.5]} 14... Qa5 {[%clk 0:04:06.3]} 15. a3
{[%clk 0:04:38.9]} 15... Ng6 {[%clk 0:04:01.2]} 16. Ne5 {[%clk 0:04:33.3]} 16...
Nxe5 {[%clk 0:03:59.6]} 17. Rxe5 {[%clk 0:04:32.4]} 17... Bd7 {[%clk 0:03:52.9]}
18. Qf3 {[%clk 0:04:28.7]} 18... Rab8 {[%clk 0:03:47.4]} 19. b4 {[%clk
0:04:06.9]} 19... Qxa3 {[%clk 0:03:25.3]} 20. Nxd5 {[%clk 0:04:05.3]} 20...
Qxc1+ {[%clk 0:03:23.9]} 0-1

[Event "Live Chess"]
[Site "Chess.com"]
[Date "2023.05.21"]
[Round "-"]
[White "sanjesh_ananda"]
[Black "siddu198"]
[Result "0-1"]
[WhiteElo "1236"]
[BlackElo "1641"]
[TimeControl "300"]
[EndTime "5:19:53 PDT"]
[Termination "siddu198 won on time"]

1. e4 {[%clk 0:04:57.4]} 1... e5 {[%clk 0:04:59.3]} 2. Nf3 {[%clk 0:04:56.1]}
2... Nc6 {[%clk 0:04:58.5]} 3. Bc4 {[%clk 0:04:53.1]} 3... Bc5 {[%clk
0:04:57.8]} 4. O-O {[%clk 0:04:48.9]} 4... Nf6 {[%clk 0:04:57.3]} 5. Re1 {[%clk
0:04:33.4]} 5... Ng4 {[%clk 0:04:41]} 6. d4 {[%clk 0:04:25.6]} 6... exd4 {[%clk
0:04:34.9]} 7. Ng5 {[%clk 0:04:14.7]} 7... Nce5 {[%clk 0:04:34]} 8. Bxf7+ {[%clk
0:03:34.1]} 8... Kf8 {[%clk 0:04:21.8]} 9. Bb3 {[%clk 0:03:07.6]} 9... d6 {[%clk
0:03:59.8]} 10. Rf1 {[%clk 0:01:17.2]} 10... Qf6 {[%clk 0:03:38.5]} 11. f4
{[%clk 0:01:07.6]} 11... d3+ {[%clk 0:03:37]} 12. Kh1 {[%clk 0:01:03.1]} 12...
Nf2+ {[%clk 0:02:56.2]} 13. Rxf2 {[%clk 0:00:58.4]} 13... Bxf2 {[%clk
0:02:55.4]} 14. fxe5 {[%clk 0:00:56.6]} 14... dxe5 {[%clk 0:02:50.1]} 15. cxd3
{[%clk 0:00:16.1]} 15... Bh3 {[%clk 0:02:22.1]} 16. Nxh3 {[%clk 0:00:11.1]}
16... Bd4 {[%clk 0:02:21.1]} 17. Nc3 {[%clk 0:00:08.2]} 17... Ke7 {[%clk
0:02:20]} 18. Bd2 {[%clk 0:00:04.8]} 18... c6 {[%clk 0:02:18.7]} 19. Ne2 {[%clk
0:00:00.3]} 19... Raf8 {[%clk 0:02:16.7]} 0-1

[Event "Live Chess"]
[Site "Chess.com"]
[Date "2023.05.21"]
[Round "-"]
[White "MartynColebrook"]
[Black "OleksiyJr1"]
[Result "0-1"]
[WhiteElo "968"]
[BlackElo "1029"]
[TimeControl "300"]
[EndTime "5:20:00 PDT"]
[Termination "OleksiyJr1 won by resignation"]

1. e4 {[%clk 0:04:57.7]} 1... c5 {[%clk 0:04:57.8]} 2. Nf3 {[%clk 0:04:55.9]}
2... Nc6 {[%clk 0:04:56.2]} 3. d4 {[%clk 0:04:54.7]} 3... cxd4 {[%clk
0:04:48.8]} 4. Nxd4 {[%clk 0:04:53.4]} 4... Nxd4 {[%clk 0:04:47.3]} 5. Qxd4
{[%clk 0:04:51.8]} 5... Nf6 {[%clk 0:04:47.2]} 6. Nc3 {[%clk 0:04:50.2]} 6... e6
{[%clk 0:04:45.8]} 7. Bd3 {[%clk 0:04:48.5]} 7... d5 {[%clk 0:04:43.3]} 8. exd5
{[%clk 0:04:46.2]} 8... Nxd5 {[%clk 0:04:42.1]} 9. Nxd5 {[%clk 0:04:44.6]} 9...
Qxd5 {[%clk 0:04:41.1]} 10. Qxd5 {[%clk 0:04:43.2]} 10... exd5 {[%clk 0:04:41]}
11. Bf4 {[%clk 0:04:40.3]} 11... Be7 {[%clk 0:04:35.5]} 12. O-O-O {[%clk
0:04:38.4]} 12... h6 {[%clk 0:04:30.9]} 13. Bb5+ {[%clk 0:04:36.2]} 13... Bd7
{[%clk 0:04:27.1]} 14. Bxd7+ {[%clk 0:04:34.7]} 14... Kxd7 {[%clk 0:04:26.7]}
15. Rxd5+ {[%clk 0:04:33]} 15... Ke8 {[%clk 0:04:25.2]} 16. Rhd1 {[%clk
0:04:29.9]} 16... Rd8 {[%clk 0:04:22.7]} 17. Be5 {[%clk 0:04:14.2]} 17... Rxd5
{[%clk 0:04:20.7]} 18. Rxd5 {[%clk 0:04:11.7]} 18... f6 {[%clk 0:04:17.7]} 19.
Bc3 {[%clk 0:04:03.6]} 19... Kf7 {[%clk 0:04:12.9]} 20. f4 {[%clk 0:04:02.1]}
20... Rd8 {[%clk 0:04:10.8]} 21. Rxd8 {[%clk 0:03:58.8]} 21... Bxd8 {[%clk
0:04:10.7]} 22. g4 {[%clk 0:03:54.8]} 22... Bc7 {[%clk 0:04:10.1]} 23. g5 {[%clk
0:03:38.5]} 23... Bxf4+ {[%clk 0:04:07.2]} 24. Kb1 {[%clk 0:03:34.4]} 24... Bxh2
{[%clk 0:03:57.8]} 25. gxf6 {[%clk 0:03:32.6]} 25... gxf6 {[%clk 0:03:49.8]} 26.
Bd4 {[%clk 0:03:28.5]} 26... Be5 {[%clk 0:03:35.8]} 27. Bxa7 {[%clk 0:03:22.9]}
27... h5 {[%clk 0:03:32]} 28. Kc1 {[%clk 0:03:20.6]} 28... h4 {[%clk 0:03:31.2]}
29. Kd1 {[%clk 0:03:18.1]} 29... h3 {[%clk 0:03:30.8]} 30. Bg1 {[%clk
0:02:52.1]} 30... Kg6 {[%clk 0:03:28.3]} 31. Ke2 {[%clk 0:02:49.2]} 31... Kh5
{[%clk 0:03:27.8]} 32. Kf3 {[%clk 0:02:45.8]} 32... Kh4 {[%clk 0:03:26.8]} 33.
b4 {[%clk 0:02:28.2]} 33... f5 {[%clk 0:03:15]} 34. c4 {[%clk 0:02:23.8]} 34...
Bc3 {[%clk 0:03:11.7]} 35. a3 {[%clk 0:02:17.4]} 35... Be5 {[%clk 0:03:06.3]}
36. a4 {[%clk 0:02:11.7]} 36... h2 {[%clk 0:03:05.6]} 37. Bxh2 {[%clk
0:02:05.3]} 37... Bxh2 {[%clk 0:03:05.5]} 38. c5 {[%clk 0:02:00.8]} 38... Bc7
{[%clk 0:02:59.6]} 39. b5 {[%clk 0:01:58.8]} 39... Bd8 {[%clk 0:02:57.9]} 40. c6
{[%clk 0:01:55.7]} 40... bxc6 {[%clk 0:02:56.1]} 41. bxc6 {[%clk 0:01:53.8]}
41... Bc7 {[%clk 0:02:55.3]} 42. Kg2 {[%clk 0:01:31.9]} 42... f4 {[%clk
0:02:52.9]} 43. Kf3 {[%clk 0:01:30]} 43... Kg5 {[%clk 0:02:51.1]} 44. Kf2 {[%clk
0:01:26.1]} 44... Kg4 {[%clk 0:02:51]} 45. Kg2 {[%clk 0:01:24.5]} 45... f3+
{[%clk 0:02:50]} 46. Kf2 {[%clk 0:01:23]} 46... Kf4 {[%clk 0:02:49]} 47. Ke1
{[%clk 0:01:14.5]} 47... Kg3 {[%clk 0:02:48.9]} 48. Kf1 {[%clk 0:01:11.8]} 48...
f2 {[%clk 0:02:44.4]} 0-1

[Event "Live Chess"]
[Site "Chess.com"]
[Date "2023.05.21"]
[Round "-"]
[White "GEMdzq"]
[Black "LiamBellwood"]
[Result "0-1"]
[WhiteElo "2270"]
[BlackElo "1925"]
[TimeControl "300"]
[EndTime "5:20:11 PDT"]
[Termination "LiamBellwood won by resignation"]

1. e4 {[%clk 0:04:58]} 1... e6 {[%clk 0:04:59.9]} 2. d4 {[%clk 0:04:56.8]} 2...
d5 {[%clk 0:04:59.8]} 3. Nc3 {[%clk 0:04:56.1]} 3... Bb4 {[%clk 0:04:57.8]} 4.
e5 {[%clk 0:04:55.1]} 4... Ne7 {[%clk 0:04:57.2]} 5. Bd2 {[%clk 0:04:54.3]} 5...
b6 {[%clk 0:04:55.5]} 6. Qg4 {[%clk 0:04:49.3]} 6... O-O {[%clk 0:04:42.9]} 7.
h4 {[%clk 0:04:39.9]} 7... c5 {[%clk 0:04:39.7]} 8. Nf3 {[%clk 0:04:37.3]} 8...
Ba6 {[%clk 0:04:36.1]} 9. Bxa6 {[%clk 0:04:30.8]} 9... Nxa6 {[%clk 0:04:36]} 10.
h5 {[%clk 0:04:29.3]} 10... cxd4 {[%clk 0:04:31.2]} 11. Nxd4 {[%clk 0:04:23.7]}
11... Nc5 {[%clk 0:04:17.7]} 12. Bh6 {[%clk 0:04:18.6]} 12... g6 {[%clk
0:04:10.3]} 13. hxg6 {[%clk 0:04:14.2]} 13... Nxg6 {[%clk 0:04:02.3]} 14. Bxf8
{[%clk 0:04:08.6]} 14... Qxf8 {[%clk 0:04:02.2]} 15. f4 {[%clk 0:03:57.7]} 15...
Ne4 {[%clk 0:03:49.8]} 16. f5 {[%clk 0:03:44.7]} 16... Qc5 {[%clk 0:03:34.5]}
17. fxg6 {[%clk 0:03:30.7]} 17... Bxc3+ {[%clk 0:03:27.4]} 18. bxc3 {[%clk
0:03:29]} 18... Qxc3+ {[%clk 0:03:23.4]} 19. Kf1 {[%clk 0:03:14.3]} 19... Qxa1+
{[%clk 0:03:19.8]} 20. Ke2 {[%clk 0:03:09.5]} 20... Qxh1 {[%clk 0:03:02.3]} 21.
gxf7+ {[%clk 0:03:08.3]} 21... Kh8 {[%clk 0:02:35.1]} 22. Nxe6 {[%clk
0:03:04.4]} 22... Qh6 {[%clk 0:02:06.4]} 23. Nf4 {[%clk 0:02:46]} 23... Rf8
{[%clk 0:01:29.1]} 24. e6 {[%clk 0:02:42.5]} 24... Qf6 {[%clk 0:01:09.8]} 25.
Nxd5 {[%clk 0:02:24.3]} 25... Qf2+ {[%clk 0:01:05.2]} 26. Kd3 {[%clk 0:02:16.1]}
26... Nc5+ {[%clk 0:01:04.4]} 27. Kc4 {[%clk 0:02:07.7]} 27... Qxc2+ {[%clk
0:00:57.3]} 28. Nc3 {[%clk 0:01:59.6]} 28... Qd3+ {[%clk 0:00:51.5]} 29. Kb4
{[%clk 0:01:50.8]} 29... a5+ {[%clk 0:00:50.6]} 0-1

[Event "Live Chess"]
[Site "Chess.com"]
[Date "2023.05.21"]
[Round "-"]
[White "RockTroll"]
[Black "Mechhead7"]
[Result "1-0"]
[WhiteElo "2214"]
[BlackElo "1775"]
[TimeControl "300"]
[EndTime "5:20:14 PDT"]
[Termination "RockTroll won by resignation"]

1. Nf3 {[%clk 0:04:58.2]} 1... Nf6 {[%clk 0:04:57.3]} 2. g3 {[%clk 0:04:58.1]}
2... d5 {[%clk 0:04:55.1]} 3. Bg2 {[%clk 0:04:58]} 3... Bf5 {[%clk 0:04:47.7]}
4. d3 {[%clk 0:04:56.6]} 4... h6 {[%clk 0:04:45.2]} 5. Nbd2 {[%clk 0:04:53]}
5... e6 {[%clk 0:04:43.8]} 6. O-O {[%clk 0:04:52.1]} 6... Nbd7 {[%clk
0:04:41.9]} 7. Qe1 {[%clk 0:04:51.4]} 7... Bh7 {[%clk 0:04:39]} 8. e4 {[%clk
0:04:50.7]} 8... dxe4 {[%clk 0:04:35.8]} 9. dxe4 {[%clk 0:04:49.2]} 9... c6
{[%clk 0:04:34.2]} 10. b3 {[%clk 0:04:42]} 10... Bd6 {[%clk 0:04:28.6]} 11. Bb2
{[%clk 0:04:41.2]} 11... Qc7 {[%clk 0:04:22.2]} 12. e5 {[%clk 0:04:35.6]} 12...
Nxe5 {[%clk 0:04:08.3]} 13. Nxe5 {[%clk 0:04:33.5]} 13... Bxc2 {[%clk
0:04:01.2]} 14. Ndc4 {[%clk 0:04:32.2]} 14... O-O {[%clk 0:03:57.7]} 15. Nxd6
{[%clk 0:04:30.4]} 15... Qxd6 {[%clk 0:03:56.7]} 16. Rc1 {[%clk 0:04:28.5]}
16... Bf5 {[%clk 0:03:51.2]} 17. Rd1 {[%clk 0:04:27.9]} 17... Qc7 {[%clk
0:03:49.8]} 18. Qc3 {[%clk 0:04:22.6]} 18... Rad8 {[%clk 0:03:47.2]} 19. Rxd8
{[%clk 0:04:14.9]} 19... Rxd8 {[%clk 0:03:47.1]} 20. h3 {[%clk 0:04:12.7]} 20...
Nd5 {[%clk 0:03:39.1]} 21. Qd4 {[%clk 0:04:09.5]} 21... f6 {[%clk 0:03:33]} 22.
Nf3 {[%clk 0:04:04]} 22... e5 {[%clk 0:03:28.9]} 23. Qh4 {[%clk 0:03:55.9]}
23... Nb4 {[%clk 0:03:14.5]} 24. g4 {[%clk 0:03:46.8]} 24... Bg6 {[%clk
0:03:00.6]} 25. Qg3 {[%clk 0:03:44.3]} 25... Nd3 {[%clk 0:02:54.2]} 26. Ba1
{[%clk 0:03:41.5]} 26... Nf4 {[%clk 0:02:51.3]} 27. Kh1 {[%clk 0:03:37.8]} 27...
Qa5 {[%clk 0:02:41]} 28. Nh4 {[%clk 0:03:35.8]} 28... Bd3 {[%clk 0:02:37.7]} 29.
Rd1 {[%clk 0:03:27.2]} 29... Nxg2 {[%clk 0:02:29.4]} 30. Qxg2 {[%clk 0:03:22.4]}
30... Be4 {[%clk 0:02:28.5]} 31. Rxd8+ {[%clk 0:03:19.4]} 31... Qxd8 {[%clk
0:02:28.4]} 32. Qxe4 {[%clk 0:03:18.2]} 32... Qd1+ {[%clk 0:02:27.4]} 33. Kg2
{[%clk 0:03:17.1]} 33... Qxa1 {[%clk 0:02:26.3]} 34. Qc4+ {[%clk 0:03:15.6]}
34... Kh8 {[%clk 0:02:24]} 35. Ng6+ {[%clk 0:03:13.1]} 35... Kh7 {[%clk
0:02:22.6]} 36. Nf8+ {[%clk 0:03:11]} 36... Kh8 {[%clk 0:02:20.5]} 37. Ng6+
{[%clk 0:03:02.7]} 37... Kh7 {[%clk 0:02:19]} 38. Ne7 {[%clk 0:03:02.1]} 38...
h5 {[%clk 0:02:07.4]} 39. Qg8+ {[%clk 0:03:00.2]} 39... Kh6 {[%clk 0:02:06.4]}
40. Qh8+ {[%clk 0:02:59.5]} 40... Kg5 {[%clk 0:02:05.1]} 41. Qxg7+ {[%clk
0:02:58.7]} 41... Kf4 {[%clk 0:02:04]} 42. Qxf6+ {[%clk 0:02:57.8]} 42... Ke4
{[%clk 0:02:02.9]} 43. Qf5+ {[%clk 0:02:56.1]} 43... Kd4 {[%clk 0:02:01.3]} 44.
Qd7+ {[%clk 0:02:53.7]} 44... Ke4 {[%clk 0:01:59.3]} 45. Nf5 {[%clk 0:02:47.9]}
45... Qc3 {[%clk 0:01:57.9]} 46. Qd1 {[%clk 0:02:42.5]} 46... hxg4 {[%clk
0:01:55.5]} 47. hxg4 {[%clk 0:02:40.6]} 47... Kf4 {[%clk 0:01:49.9]} 48. Qe2
{[%clk 0:02:35.6]} 48... e4 {[%clk 0:01:41.2]} 49. Qe3+ {[%clk 0:02:33.4]} 49...
Qxe3 {[%clk 0:01:39.7]} 50. Nxe3 {[%clk 0:02:33.3]} 1-0

[Event "Live Chess"]
[Site "Chess.com"]
[Date "2023.05.21"]
[Round "-"]
[White "Tiltador"]
[Black "LanceMaster23"]
[Result "0-1"]
[WhiteElo "804"]
[BlackElo "1946"]
[TimeControl "300"]
[EndTime "5:20:17 PDT"]
[Termination "LanceMaster23 won by checkmate"]

1. e4 {[%clk 0:04:57.5]} 1... c5 {[%clk 0:04:58.8]} 2. f3 {[%clk 0:04:55.8]}
2... Nc6 {[%clk 0:04:58.4]} 3. d3 {[%clk 0:04:54.8]} 3... d5 {[%clk 0:04:57.5]}
4. Be2 {[%clk 0:04:48.4]} 4... e5 {[%clk 0:04:51.6]} 5. Nc3 {[%clk 0:04:46.8]}
5... d4 {[%clk 0:04:45.5]} 6. Nd5 {[%clk 0:04:45.4]} 6... Be6 {[%clk 0:04:43.8]}
7. f4 {[%clk 0:04:37.5]} 7... Bxd5 {[%clk 0:04:36.6]} 8. exd5 {[%clk 0:04:35.7]}
8... Qxd5 {[%clk 0:04:36.5]} 9. Bf3 {[%clk 0:04:28.7]} 9... Qe6 {[%clk
0:04:27.1]} 10. Bxc6+ {[%clk 0:04:16.9]} 10... bxc6 {[%clk 0:04:24.9]} 11. Nf3
{[%clk 0:04:13.4]} 11... e4 {[%clk 0:04:23.3]} 12. Ne5 {[%clk 0:04:05.2]} 12...
exd3 {[%clk 0:04:04.3]} 13. cxd3 {[%clk 0:03:55.4]} 13... f6 {[%clk 0:03:48.3]}
14. O-O {[%clk 0:03:47.7]} 14... fxe5 {[%clk 0:03:45.3]} 15. fxe5 {[%clk
0:03:35.9]} 15... Be7 {[%clk 0:03:29.9]} 16. Qh5+ {[%clk 0:03:15.8]} 16... Qg6
{[%clk 0:02:46.8]} 17. Qh3 {[%clk 0:03:01]} 17... Nh6 {[%clk 0:02:19.4]} 18. Bf4
{[%clk 0:02:42.8]} 18... Qg4 {[%clk 0:02:06.6]} 19. Qf3 {[%clk 0:02:22.3]} 19...
Qxf3 {[%clk 0:02:01.3]} 20. Rxf3 {[%clk 0:02:19.7]} 20... Ng4 {[%clk 0:01:43.1]}
21. Bg3 {[%clk 0:02:10.8]} 21... Rf8 {[%clk 0:01:31.5]} 22. Rxf8+ {[%clk
0:02:03.9]} 22... Kxf8 {[%clk 0:01:31.4]} 23. Rf1+ {[%clk 0:02:01.6]} 23... Kg8
{[%clk 0:01:26.1]} 24. Rf5 {[%clk 0:01:49.4]} 24... Rf8 {[%clk 0:01:19.6]} 25.
Rxf8+ {[%clk 0:01:44.3]} 25... Kxf8 {[%clk 0:01:17.9]} 26. h3 {[%clk 0:01:40.4]}
26... Ne3 {[%clk 0:01:08]} 27. a3 {[%clk 0:01:30.9]} 27... c4 {[%clk 0:00:56.9]}
28. dxc4 {[%clk 0:01:23.9]} 28... Nxc4 {[%clk 0:00:56.8]} 29. Bf2 {[%clk
0:01:05.2]} 29... d3 {[%clk 0:00:55]} 30. Bxa7 {[%clk 0:00:55.7]} 30... d2
{[%clk 0:00:53.6]} 31. b3 {[%clk 0:00:44.4]} 31... d1=Q+ {[%clk 0:00:51.6]} 32.
Kh2 {[%clk 0:00:41]} 32... Nd2 {[%clk 0:00:51.2]} 33. b4 {[%clk 0:00:33.2]}
33... Nf1+ {[%clk 0:00:49.7]} 34. Kh1 {[%clk 0:00:26.2]} 34... Ne3+ {[%clk
0:00:39.9]} 35. Kh2 {[%clk 0:00:22.7]} 35... Qe2 {[%clk 0:00:38.9]} 36. Bc5
{[%clk 0:00:18.5]} 36... Qxg2# {[%clk 0:00:37.8]} 0-1

[Event "Live Chess"]
[Site "Chess.com"]
[Date "2023.05.21"]
[Round "-"]
[White "tpm07"]
[Black "domrobson"]
[Result "1-0"]
[WhiteElo "1942"]
[BlackElo "1729"]
[TimeControl "300"]
[EndTime "5:20:17 PDT"]
[Termination "tpm07 won by resignation"]

1. e4 {[%clk 0:04:57]} 1... e5 {[%clk 0:04:59.5]} 2. Nf3 {[%clk 0:04:55.1]} 2...
Nc6 {[%clk 0:04:59.1]} 3. Bb5 {[%clk 0:04:52.9]} 3... a6 {[%clk 0:04:57.8]} 4.
Ba4 {[%clk 0:04:48.4]} 4... Nf6 {[%clk 0:04:57.4]} 5. O-O {[%clk 0:04:45]} 5...
Nxe4 {[%clk 0:04:56.5]} 6. d4 {[%clk 0:04:26.7]} 6... b5 {[%clk 0:04:55.1]} 7.
d5 {[%clk 0:04:05.5]} 7... bxa4 {[%clk 0:04:51.6]} 8. dxc6 {[%clk 0:04:04.8]}
8... dxc6 {[%clk 0:04:50.7]} 9. Qxd8+ {[%clk 0:04:02.4]} 9... Kxd8 {[%clk
0:04:49.4]} 10. Nxe5 {[%clk 0:04:01.6]} 10... Bd6 {[%clk 0:04:34.3]} 11. Nxf7+
{[%clk 0:03:54.8]} 1-0

[Event "Live Chess"]
[Site "Chess.com"]
[Date "2023.05.21"]
[Round "-"]
[White "ElectricFalcon"]
[Black "Hacker_2009"]
[Result "0-1"]
[WhiteElo "1082"]
[BlackElo "1937"]
[TimeControl "300"]
[EndTime "5:20:25 PDT"]
[Termination "Hacker_2009 won by resignation"]

1. d4 {[%clk 0:04:58.1]} 1... Nf6 {[%clk 0:04:58.4]} 2. c4 {[%clk 0:04:58]} 2...
e6 {[%clk 0:04:56.9]} 3. Nf3 {[%clk 0:04:57.9]} 3... d5 {[%clk 0:04:55.9]} 4. c5
{[%clk 0:04:55.8]} 4... b6 {[%clk 0:04:54]} 5. Nc3 {[%clk 0:04:55.4]} 5... bxc5
{[%clk 0:04:51.5]} 6. dxc5 {[%clk 0:04:53.7]} 6... Bxc5 {[%clk 0:04:51]} 7. Bg5
{[%clk 0:04:53.1]} 7... O-O {[%clk 0:04:50.1]} 8. e3 {[%clk 0:04:49.4]} 8... Be7
{[%clk 0:04:48.2]} 9. Bxf6 {[%clk 0:04:43.8]} 9... Bxf6 {[%clk 0:04:46.7]} 10.
Bd3 {[%clk 0:04:42.6]} 10... c5 {[%clk 0:04:44.3]} 11. O-O {[%clk 0:04:37.5]}
11... Bb7 {[%clk 0:04:42.9]} 12. e4 {[%clk 0:04:33.4]} 12... Nc6 {[%clk
0:04:39.1]} 13. e5 {[%clk 0:04:31.5]} 13... Nxe5 {[%clk 0:04:37]} 14. Nxe5
{[%clk 0:04:30.7]} 14... Bxe5 {[%clk 0:04:36.9]} 15. Qh5 {[%clk 0:04:27.8]}
15... f5 {[%clk 0:04:27]} 16. Nb5 {[%clk 0:04:14.4]} 16... d4 {[%clk 0:04:14.8]}
17. Rfe1 {[%clk 0:04:08.2]} 17... Bf6 {[%clk 0:04:13.5]} 18. Rxe6 {[%clk
0:04:03.9]} 18... Qd5 {[%clk 0:04:12.5]} 19. f3 {[%clk 0:03:51]} 19... Qxe6
{[%clk 0:03:58.5]} 20. Bxf5 {[%clk 0:03:49.6]} 20... Qe3+ {[%clk 0:03:58]} 21.
Kh1 {[%clk 0:03:46.8]} 21... Qh6 {[%clk 0:03:37.2]} 22. Qg4 {[%clk 0:03:34.1]}
22... Be5 {[%clk 0:03:30.9]} 23. h3 {[%clk 0:03:22.2]} 23... Qf4 {[%clk
0:03:28.6]} 24. Qxf4 {[%clk 0:03:19.6]} 24... Bxf4 {[%clk 0:03:27.5]} 25. Be6+
{[%clk 0:03:17.9]} 25... Kh8 {[%clk 0:03:25]} 26. Re1 {[%clk 0:03:13.7]} 26...
Rfe8 {[%clk 0:03:23.3]} 27. a3 {[%clk 0:03:04.4]} 27... Bd5 {[%clk 0:03:20.1]}
28. Re4 {[%clk 0:02:34.7]} 28... Bxe4 {[%clk 0:03:18]} 29. Bd7 {[%clk
0:02:30.5]} 29... Re7 {[%clk 0:03:15.2]} 30. fxe4 {[%clk 0:02:26]} 30... Rxe4
{[%clk 0:03:06.1]} 0-1